bitfinex-derivatives/quotes_BTCF0:USTF0_20251228
["timestamp","ask_amount","ask_price","bid_price","bid_amount"]
[1766893788011,0.02464275,87795.0,87785.0,0.057]
[1766893788311,0.02464275,87794.0,87785.0,0.057]
[1766893788513,0.0130963,87797.0,87785.0,0.057]
[1766893788713,0.02464277,87796.0,87785.0,0.057]
[1766893788912,0.02464277,87795.0,87785.0,0.057]
[1766893789212,0.02464277,87794.0,87785.0,0.057]
[1766893789408,0.11434667,87800.0,87785.0,0.057]
[1766893789607,0.02464277,87799.0,87785.0,0.057]
[1766893789808,0.02464277,87798.0,87785.0,0.057]
[1766893790008,0.02464277,87797.0,87785.0,0.057]
[1766893790509,0.02464277,87796.0,87785.0,0.057]
[1766893790708,0.02464277,87795.0,87785.0,0.057]
[1766893790909,0.02464277,87794.0,87785.0,0.057]
[1766893791119,0.11434667,87800.0,87785.0,0.057]
[1766893791315,0.0246428,87799.0,87785.0,0.057]
[1766893791513,0.0246428,87798.0,87785.0,0.057]
[1766893791813,0.0246428,87797.0,87785.0,0.057]
[1766893792011,0.0246428,87796.0,87785.0,0.057]
[1766893792211,0.11434667,87800.0,87790.0,0.0113987]
[1766893792513,0.11434667,87800.0,87786.0,0.0113991]
[1766893792713,0.11434667,87796.0,87786.0,0.0113991]
[1766893792913,0.0130963,87799.0,87786.0,0.0113991]
[1766893793519,0.11434667,87800.0,87786.0,0.0113991]
[1766893793713,0.0130963,87799.0,87786.0,0.0113991]
[1766893794116,0.11434667,87800.0,87786.0,0.0113991]
[1766893794314,0.0130963,87799.0,87786.0,0.0113991]
[1766893794719,0.11434667,87800.0,87786.0,0.0113991]
[1766893795019,0.0130963,87799.0,87786.0,0.0113991]
[1766893795619,0.11434667,87800.0,87786.0,0.0113991]
[1766893795819,0.0130963,87799.0,87786.0,0.0113991]
[1766893800124,0.11434667,87800.0,87786.0,0.0113991]
[1766893800325,0.0130963,87799.0,87786.0,0.0113991]
[1766893800716,0.11434667,87800.0,87786.0,0.0113991]
[1766893800915,0.0130963,87799.0,87786.0,0.0113991]
[1766893801116,0.11434667,87800.0,87786.0,0.0113991]
[1766893801322,0.0130963,87799.0,87786.0,0.0113991]
[1766893802035,0.0130963,87798.0,87785.0,0.057]
[1766893802535,0.12574417,87800.0,87785.0,0.057]
[1766893802734,0.11434667,87795.0,87785.0,0.057]
[1766893802934,0.12574417,87800.0,87785.0,0.057]
[1766893803233,0.11434667,87795.0,87785.0,0.057]
[1766893804236,0.02456887,87794.0,87785.0,0.057]
[1766893804436,0.11434667,87795.0,87785.0,0.057]
[1766893804738,0.02456885,87794.0,87785.0,0.057]
[1766893804928,0.11434667,87795.0,87785.0,0.057]
[1766893805129,0.02456882,87794.0,87785.0,0.057]
[1766893805328,0.11434667,87795.0,87785.0,0.057]
[1766893805524,0.02456941,87794.0,87785.0,0.057]
[1766893805728,0.11434667,87795.0,87785.0,0.057]
[1766893806037,0.02456955,87794.0,87785.0,0.057]
[1766893806237,0.11434667,87795.0,87785.0,0.057]
[1766893806438,0.02456955,87794.0,87785.0,0.057]
[1766893806638,0.11434667,87795.0,87785.0,0.057]
[1766893806838,0.02456955,87794.0,87785.0,0.057]
[1766893807039,0.11434667,87795.0,87785.0,0.057]
[1766893807238,0.02456955,87794.0,87785.0,0.057]
[1766893807438,0.11434667,87795.0,87785.0,0.057]
[1766893807639,0.02456955,87794.0,87785.0,0.057]
[1766893807830,0.11434667,87795.0,87785.0,0.057]
[1766893808130,0.02456955,87794.0,87785.0,0.057]
[1766893808329,0.11434667,87795.0,87785.0,0.057]
[1766893808529,0.02456951,87794.0,87785.0,0.057]
[1766893808735,0.11434667,87795.0,87785.0,0.057]
[1766893808936,0.02456951,87794.0,87785.0,0.057]
[1766893809133,0.11434667,87795.0,87785.0,0.057]
[1766893809335,0.02456928,87794.0,87785.0,0.057]
[1766893809534,0.11434667,87795.0,87785.0,0.057]
[1766893809840,0.11434667,87795.0,87772.0,0.06158353]
[1766893809841,0.02456925,87794.0,87772.0,0.06158353]
[1766893810039,0.11434667,87790.0,87774.0,0.15388]
[1766893810241,0.11434667,87790.0,87783.0,0.0113996]
[1766893810441,0.11434667,87793.0,87784.0,0.057]
[1766893810639,0.02456921,87792.0,87784.0,0.057]
[1766893810840,0.11434667,87793.0,87784.0,0.057]
[1766893811043,0.02456921,87792.0,87784.0,0.057]
[1766893811237,0.11434667,87793.0,87784.0,0.057]
[1766893811438,0.02456918,87792.0,87785.0,0.0113994]
[1766893811638,0.11434667,87795.0,87787.0,0.011399]
[1766893811837,0.02456925,87794.0,87787.0,0.011399]
[1766893812038,0.02456925,87793.0,87787.0,0.011399]
[1766893812239,5e-08,87792.0,87787.0,0.011399]
[1766893812440,0.057,87799.0,87787.0,0.011399]
[1766893813645,0.057,87799.0,87789.0,0.0113988]
[1766893813849,0.0130963,87798.0,87789.0,0.0113988]
[1766893814046,0.0130963,87798.0,87791.0,0.0113985]
[1766893814241,0.057,87799.0,87791.0,0.0113985]
[1766893814440,0.0130963,87798.0,87791.0,0.0113985]
[1766893815245,0.057,87799.0,87791.0,0.0113985]
[1766893819352,0.057,87799.0,87784.0,0.057]
[1766893819736,0.17134667,87800.0,87784.0,0.057]
[1766893819941,0.17134667,87800.0,87794.0,0.0113981]
[1766893820239,0.057,87800.0,87794.0,0.0113981]
[1766893824251,0.02446293,87799.0,87794.0,0.0113981]
[1766893824454,3e-08,87798.0,87794.0,0.0113981]
[1766893824647,0.057,87800.0,87794.0,0.0113981]
[1766893831060,0.057,87800.0,87784.0,0.057]
[1766893832760,0.17134667,87800.0,87784.0,0.057]
[1766893835260,0.17134667,87800.0,87789.0,0.0113988]
[1766893836364,0.02446401,87799.0,87789.0,0.0113988]
[1766893836564,0.02446401,87798.0,87789.0,0.0113988]
[1766893836760,0.02446401,87797.0,87789.0,0.0113988]
[1766893836963,0.02446401,87796.0,87789.0,0.0113988]
[1766893837161,0.17134667,87800.0,87789.0,0.0113988]
[1766893837460,0.02446397,87799.0,87789.0,0.0113988]
[1766893837660,0.02446397,87798.0,87789.0,0.0113988]
[1766893837866,0.02446397,87797.0,87789.0,0.0113988]
[1766893838056,0.02446397,87796.0,87789.0,0.0113988]
[1766893838257,0.17134667,87800.0,87789.0,0.0113988]
[1766893838457,0.02446422,87799.0,87789.0,0.0113988]
[1766893838657,0.02446422,87798.0,87789.0,0.0113988]
[1766893838858,0.17134667,87800.0,87789.0,0.0113988]
[1766893838859,0.02446422,87797.0,87789.0,0.0113988]
[1766893839059,0.02446422,87796.0,87789.0,0.0113988]
[1766893839260,0.17134667,87800.0,87789.0,0.0113988]
[1766893839458,0.0244644,87799.0,87789.0,0.0113988]
[1766893839664,0.0244644,87798.0,87789.0,0.0113988]
[1766893839865,0.0244644,87797.0,87789.0,0.0113988]
[1766893840070,0.0244644,87796.0,87789.0,0.0113988]
[1766893840263,0.057,87800.0,87789.0,0.0113988]
[1766893840466,0.02446465,87799.0,87789.0,0.0113988]
[1766893840656,0.02446465,87798.0,87789.0,0.0113988]
[1766893840861,0.02446465,87797.0,87789.0,0.0113988]
[1766893841061,0.02446465,87796.0,87789.0,0.0113988]
[1766893841261,0.057,87800.0,87789.0,0.0113988]
[1766893841462,0.02446504,87799.0,87789.0,0.0113988]
[1766893841672,0.02446504,87798.0,87789.0,0.0113988]
[1766893841870,0.02446504,87797.0,87789.0,0.0113988]
[1766893842065,0.02446504,87796.0,87789.0,0.0113988]
[1766893842272,0.057,87800.0,87789.0,0.0113988]
[1766893842473,0.02446526,87799.0,87789.0,0.0113988]
[1766893842670,0.02446526,87798.0,87789.0,0.0113988]
[1766893842976,0.02446526,87797.0,87789.0,0.0113988]
[1766893843269,0.02446526,87796.0,87789.0,0.0113988]
[1766893843463,0.057,87800.0,87789.0,0.0113988]
[1766893843660,0.02446569,87799.0,87789.0,0.0113988]
[1766893843872,0.02446569,87798.0,87789.0,0.0113988]
[1766893844058,0.02446569,87797.0,87789.0,0.0113988]
[1766893844265,0.02446569,87796.0,87789.0,0.0113988]
[1766893844473,0.057,87800.0,87789.0,0.0113988]
[1766893844674,0.02446601,87799.0,87789.0,0.0113988]
[1766893844874,0.02446601,87798.0,87789.0,0.0113988]
[1766893845175,0.02446601,87797.0,87789.0,0.0113988]
[1766893845366,0.02446601,87796.0,87789.0,0.0113988]
[1766893845673,0.057,87800.0,87789.0,0.0113988]
[1766893845872,0.02446632,87799.0,87789.0,0.0113988]
[1766893846074,0.02446632,87798.0,87789.0,0.0113988]
[1766893846375,0.02446632,87797.0,87789.0,0.0113988]
[1766893846573,0.02446632,87796.0,87789.0,0.0113988]
[1766893846874,0.057,87800.0,87789.0,0.0113988]
[1766893847073,0.02446668,87799.0,87789.0,0.0113988]
[1766893847373,0.02446668,87798.0,87789.0,0.0113988]
[1766893847573,0.02446668,87797.0,87789.0,0.0113988]
[1766893847773,0.02446668,87796.0,87789.0,0.0113988]
[1766893848072,0.02446668,87795.0,87789.0,0.0113988]
[1766893848375,0.057,87800.0,87789.0,0.0113988]
[1766893848571,0.02446782,87799.0,87789.0,0.0113988]
[1766893848771,0.02446782,87798.0,87791.0,0.0113986]
[1766893848970,0.02446782,87797.0,87791.0,0.0113986]
[1766893849171,2e-08,87796.0,87791.0,0.0113986]
[1766893849373,0.057,87800.0,87791.0,0.0113986]
[1766893855182,0.057,87800.0,87784.0,0.057]
[1766893855183,0.057,87800.0,87788.0,0.0113989]
[1766893856780,0.057,87800.0,87790.0,0.0113987]
[1766893860779,0.057,87800.0,87787.0,0.0113991]
[1766893861188,0.02432143,87799.0,87787.0,0.0113991]
[1766893861380,0.02432143,87798.0,87787.0,0.0113991]
[1766893861581,0.02432143,87797.0,87787.0,0.0113991]
[1766893861781,0.02432143,87796.0,87787.0,0.0113991]
[1766893862080,0.02432143,87795.0,87787.0,0.0113991]
[1766893862386,0.057,87800.0,87789.0,0.0113988]
[1766893862581,0.02432201,87799.0,87789.0,0.0113988]
[1766893862781,0.02432201,87798.0,87789.0,0.0113988]
[1766893862981,0.02432201,87797.0,87789.0,0.0113988]
[1766893863180,0.02432201,87796.0,87789.0,0.0113988]
[1766893863379,0.02432201,87795.0,87789.0,0.0113988]
[1766893863579,0.057,87800.0,87789.0,0.0113988]
[1766893863879,0.02432278,87799.0,87789.0,0.0113988]
[1766893864080,0.02432278,87798.0,87789.0,0.0113988]
[1766893864280,0.02432278,87797.0,87789.0,0.0113988]
[1766893864480,0.02432278,87796.0,87789.0,0.0113988]
[1766893864681,0.02432278,87795.0,87789.0,0.0113988]
[1766893864881,0.057,87800.0,87789.0,0.0113988]
[1766893865082,0.02432279,87799.0,87789.0,0.0113988]
[1766893865282,0.02432279,87798.0,87789.0,0.0113988]
[1766893865491,0.02432279,87797.0,87789.0,0.0113988]
[1766893865684,0.02432279,87796.0,87789.0,0.0113988]
[1766893865882,0.02432279,87795.0,87789.0,0.0113988]
[1766893866080,0.057,87800.0,87789.0,0.0113988]
[1766893866282,0.02432279,87799.0,87789.0,0.0113988]
[1766893866482,0.02432279,87798.0,87789.0,0.0113988]
[1766893866683,0.02432279,87797.0,87789.0,0.0113988]
[1766893866884,0.02432279,87796.0,87789.0,0.0113988]
[1766893867084,0.02432279,87795.0,87789.0,0.0113988]
[1766893867285,0.057,87800.0,87789.0,0.0113988]
[1766893867593,0.02432289,87799.0,87791.0,0.0113985]
[1766893867791,0.02432289,87798.0,87791.0,0.0113985]
[1766893867981,0.02432289,87797.0,87791.0,0.0113985]
[1766893868187,9e-08,87796.0,87791.0,0.0113985]
[1766893868481,0.057,87800.0,87791.0,0.0113985]
[1766893871496,0.057,87800.0,87793.0,0.0113983]
[1766893871894,0.057,87800.0,87790.0,0.0113987]
[1766893873401,0.057,87800.0,87792.0,0.0113984]
[1766893876206,0.057,87800.0,87789.0,0.0113988]
[1766893876705,0.057,87800.0,87791.0,0.0113985]
[1766893879804,0.057,87800.0,87784.0,0.057]
[1766893880006,0.057,87801.0,87795.0,0.0113981]
[1766893880308,0.02421792,87800.0,87795.0,0.0113981]
[1766893880513,0.02421792,87799.0,87795.0,0.0113981]
[1766893880720,2e-08,87798.0,87795.0,0.0113981]
[1766893881016,0.057,87801.0,87795.0,0.0113981]
[1766893890018,0.057,87801.0,87792.0,0.0113984]
[1766893895220,0.057,87804.0,87792.0,0.0113984]
[1766893900025,0.11433318,87802.0,87792.0,0.0113984]
[1766893910232,0.11433318,87802.0,87794.0,0.0113982]
[1766893910930,0.11433318,87802.0,87788.0,0.00017083]
[1766893911528,0.02414027,87801.0,87793.0,0.0113983]
[1766893911832,0.11433318,87802.0,87793.0,0.0113983]
[1766893911833,0.02414027,87800.0,87793.0,0.0113983]
[1766893912132,0.02414027,87799.0,87793.0,0.0113983]
[1766893912328,0.02414027,87798.0,87793.0,0.0113983]
[1766893912527,0.11433318,87802.0,87793.0,0.0113983]
[1766893912732,0.02414041,87801.0,87793.0,0.0113983]
[1766893912933,0.02414041,87800.0,87793.0,0.0113983]
[1766893913235,0.02414041,87799.0,87793.0,0.0113983]
[1766893913426,0.02414041,87798.0,87793.0,0.0113983]
[1766893913726,0.11433318,87802.0,87793.0,0.0113983]
[1766893914032,0.02414057,87801.0,87793.0,0.0113983]
[1766893914233,0.02414057,87800.0,87793.0,0.0113983]
[1766893914434,0.02414057,87799.0,87793.0,0.0113983]
[1766893914633,0.02414057,87798.0,87793.0,0.0113983]
[1766893914933,0.11433318,87802.0,87793.0,0.0113983]
[1766893915134,0.02414088,87801.0,87793.0,0.0113983]
[1766893915331,0.02414088,87800.0,87793.0,0.0113983]
[1766893915631,0.02414088,87799.0,87793.0,0.0113983]
[1766893915834,8e-08,87798.0,87793.0,0.0113983]
[1766893916032,0.11433318,87802.0,87793.0,0.0113983]
[1766893921940,0.057,87804.0,87793.0,0.0113983]
[1766893922328,0.11433318,87803.0,87788.0,0.00017083]
[1766893922524,0.00017083,87805.0,87788.0,0.00017083]
[1766893922739,3e-08,87805.0,87800.0,0.0113974]
[1766893922934,3e-08,87805.0,87800.0,0.0683974]
[1766893934647,3e-08,87805.0,87802.0,0.0113971]
[1766893937346,3e-08,87805.0,87800.0,0.057]
[1766893952256,0.02427075,87804.0,87800.0,0.057]
[1766893952450,3e-08,87805.0,87800.0,0.057]
[1766893952652,0.02427075,87804.0,87800.0,0.057]
[1766893952951,3e-08,87805.0,87800.0,0.057]
[1766893953146,0.02427075,87804.0,87800.0,0.057]
[1766893953354,3e-08,87805.0,87800.0,0.057]
[1766893953549,0.02427074,87804.0,87800.0,0.057]
[1766893953849,3e-08,87805.0,87800.0,0.057]
[1766893954048,0.02427074,87804.0,87800.0,0.057]
[1766893954249,3e-08,87805.0,87800.0,0.057]
[1766893954446,0.02427083,87804.0,87800.0,0.057]
[1766893954654,3e-08,87805.0,87800.0,0.057]
[1766893954854,0.02427083,87804.0,87800.0,0.057]
[1766893955153,3e-08,87805.0,87800.0,0.057]
[1766893955353,0.02427082,87804.0,87800.0,0.057]
[1766893955553,3e-08,87805.0,87800.0,0.057]
[1766893955753,0.02427081,87804.0,87800.0,0.057]
[1766893955955,3e-08,87805.0,87800.0,0.057]
[1766893956156,0.02427073,87804.0,87800.0,0.057]
[1766893956457,3e-08,87805.0,87800.0,0.057]
[1766893956656,0.02427073,87804.0,87800.0,0.057]
[1766893956956,3e-08,87805.0,87800.0,0.057]
[1766893957158,0.02427073,87804.0,87800.0,0.057]
[1766893957356,3e-08,87805.0,87800.0,0.057]
[1766893957556,0.02427072,87804.0,87800.0,0.057]
[1766893957756,3e-08,87805.0,87800.0,0.057]
[1766893957957,0.02427072,87804.0,87800.0,0.057]
[1766893958157,3e-08,87805.0,87800.0,0.057]
[1766893958360,0.02427072,87804.0,87800.0,0.057]
[1766893958561,3e-08,87805.0,87800.0,0.057]
[1766893958859,0.02427071,87804.0,87800.0,0.057]
[1766893959060,3e-08,87805.0,87800.0,0.057]
[1766893959263,0.02427071,87804.0,87800.0,0.057]
[1766893959453,3e-08,87805.0,87800.0,0.057]
[1766893959655,0.0242707,87804.0,87800.0,0.057]
[1766893959851,3e-08,87805.0,87800.0,0.057]
[1766893960559,3e-08,87805.0,87801.0,0.0113973]
[1766893964065,3e-08,87805.0,87789.0,0.0113988]
[1766893964066,3e-08,87805.0,87802.0,0.057]
[1766893973077,3e-08,87805.0,87794.0,0.0113981]
[1766893973280,3e-08,87805.0,87795.0,0.15388]
[1766893978393,3e-08,87805.0,87794.0,0.0113981]
[1766893978596,3e-08,87805.0,87795.0,0.15388]
[1766893982296,3e-08,87805.0,87791.0,0.0113985]
[1766893982494,3e-08,87805.0,87788.0,0.00017083]
[1766893982495,0.0113973,87802.0,87788.0,0.00017083]
[1766893982793,0.0113973,87801.0,87789.0,0.057]
[1766893983099,0.011397,87804.0,87789.0,0.057]
[1766893983297,0.02497649,87803.0,87789.0,0.057]
[1766893983489,0.011397,87804.0,87789.0,0.057]
[1766893983691,0.02497649,87803.0,87789.0,0.057]
[1766893983889,0.011397,87804.0,87789.0,0.057]
[1766893984193,0.02497653,87803.0,87788.0,0.00017083]
[1766893984396,0.011397,87804.0,87789.0,0.15388]
[1766893984597,0.02497342,87803.0,87789.0,0.15388]
[1766893984789,0.011397,87804.0,87789.0,0.15388]
[1766893984986,0.02497344,87803.0,87789.0,0.15388]
[1766893985185,0.011397,87804.0,87789.0,0.15388]
[1766893990094,0.02496676,87803.0,87789.0,0.15388]
[1766893990297,0.011397,87804.0,87789.0,0.15388]
[1766893990590,0.0249661,87803.0,87789.0,0.1652788]
[1766893990795,3e-08,87805.0,87789.0,0.1652788]
[1766893990998,0.0249661,87804.0,87791.0,0.0113985]
[1766893991192,0.0249661,87803.0,87791.0,0.0113985]
[1766893991386,3e-08,87805.0,87791.0,0.0113985]
[1766893991586,0.02496563,87804.0,87791.0,0.0113985]
[1766893991793,0.02496563,87803.0,87791.0,0.0113985]
[1766893991992,3e-08,87805.0,87791.0,0.0113985]
[1766893992193,0.02496562,87804.0,87791.0,0.0113985]
[1766893992498,0.02496562,87803.0,87791.0,0.0113985]
[1766893992800,3e-08,87805.0,87791.0,0.0113985]
[1766893992801,0.02496526,87802.0,87791.0,0.0113985]
[1766893992989,0.02496528,87801.0,87791.0,0.0113985]
[1766893993189,3e-08,87805.0,87791.0,0.0113985]
[1766893993389,0.02496506,87804.0,87791.0,0.0113985]
[1766893993589,0.02496506,87803.0,87791.0,0.0113985]
[1766893993799,0.02496506,87802.0,87791.0,0.0113985]
[1766893993997,0.02496506,87801.0,87791.0,0.0113985]
[1766893994198,3e-08,87805.0,87791.0,0.0113985]
[1766893994499,0.02496484,87804.0,87791.0,0.0113985]
[1766893994698,0.02496484,87803.0,87791.0,0.0113985]
[1766893994996,0.02496484,87802.0,87791.0,0.0113985]
[1766893995198,0.02496484,87801.0,87791.0,0.0113985]
[1766893995400,3e-08,87805.0,87791.0,0.0113985]
[1766893995591,0.02496473,87804.0,87791.0,0.0113985]
[1766893995791,0.02496473,87803.0,87791.0,0.0113985]
[1766893996092,0.02496473,87802.0,87791.0,0.0113985]
[1766893996291,0.02496473,87801.0,87791.0,0.0113985]
[1766893996587,3e-08,87805.0,87791.0,0.0113985]
[1766893996791,0.02496472,87804.0,87791.0,0.0113985]
[1766893996993,0.02496472,87803.0,87791.0,0.0113985]
[1766893997192,0.02496472,87802.0,87791.0,0.0113985]
[1766893997393,3e-08,87805.0,87795.0,0.0113981]
[1766893997394,2e-08,87801.0,87795.0,0.0113981]
[1766893997594,3e-08,87805.0,87795.0,0.0113981]
[1766894009614,0.09688,87812.0,87795.0,0.0113981]
[1766894010409,0.09705083,87812.0,87795.0,0.0113981]
[1766894020319,0.0113961,87811.0,87792.0,0.0683984]
[1766894021422,0.02488533,87810.0,87792.0,0.0683984]
[1766894021623,0.02488533,87809.0,87792.0,0.0683984]
[1766894021817,0.02488533,87808.0,87792.0,0.0683984]
[1766894022018,0.02488533,87807.0,87792.0,0.0683984]
[1766894022217,0.02488533,87806.0,87792.0,0.0683984]
[1766894022417,0.02488533,87805.0,87792.0,0.0683984]
[1766894022619,0.02488533,87804.0,87792.0,0.0683984]
[1766894022820,0.02488533,87803.0,87792.0,0.0683984]
[1766894023027,0.11432318,87810.0,87792.0,0.0683984]
[1766894023319,0.02488577,87809.0,87792.0,0.0683984]
[1766894023519,0.02488577,87808.0,87792.0,0.0683984]
[1766894023721,0.11432318,87802.0,87792.0,0.057]
[1766894024314,0.02488653,87801.0,87792.0,0.057]
[1766894024520,0.11432318,87802.0,87792.0,0.057]
[1766894024721,0.02488671,87801.0,87792.0,0.057]
[1766894024922,0.11432318,87802.0,87792.0,0.057]
[1766894025123,0.02488671,87801.0,87792.0,0.057]
[1766894025323,0.11432318,87802.0,87792.0,0.057]
[1766894025523,0.0248869,87801.0,87792.0,0.057]
[1766894025723,0.11432318,87802.0,87792.0,0.057]
[1766894025919,0.02488687,87801.0,87792.0,0.057]
[1766894026120,0.11432318,87802.0,87792.0,0.057]
[1766894026320,0.02488687,87801.0,87792.0,0.057]
[1766894026520,0.11432318,87802.0,87792.0,0.057]
[1766894026723,0.02488703,87801.0,87792.0,0.057]
[1766894026924,0.11432318,87802.0,87792.0,0.057]
[1766894027114,0.02488703,87801.0,87792.0,0.057]
[1766894027317,0.11432318,87802.0,87792.0,0.057]
[1766894027526,0.02488718,87801.0,87792.0,0.057]
[1766894027721,0.11432318,87802.0,87792.0,0.057]
[1766894027922,0.02488718,87801.0,87792.0,0.057]
[1766894028224,0.11432318,87802.0,87792.0,0.057]
[1766894028427,0.02488672,87801.0,87792.0,0.057]
[1766894028625,0.11432318,87802.0,87792.0,0.057]
[1766894028826,0.0248867,87801.0,87792.0,0.057]
[1766894029126,0.11432318,87802.0,87792.0,0.057]
[1766894029326,0.0248867,87801.0,87792.0,0.057]
[1766894029527,0.11432318,87802.0,87792.0,0.057]
[1766894029826,0.02488628,87801.0,87792.0,0.057]
[1766894030012,0.11432318,87802.0,87792.0,0.057]
[1766894030218,0.02488628,87801.0,87792.0,0.057]
[1766894030415,0.11432318,87802.0,87792.0,0.057]
[1766894030614,0.02488592,87801.0,87792.0,0.057]
[1766894030826,0.11432318,87802.0,87792.0,0.057]
[1766894031026,0.02488592,87801.0,87792.0,0.057]
[1766894031226,0.11432318,87802.0,87792.0,0.057]
[1766894031429,0.02488561,87801.0,87792.0,0.057]
[1766894031728,0.11432318,87802.0,87792.0,0.057]
[1766894031928,0.02488561,87801.0,87792.0,0.057]
[1766894032129,0.11432318,87802.0,87792.0,0.057]
[1766894032329,0.02488561,87801.0,87792.0,0.057]
[1766894032529,0.11432318,87802.0,87792.0,0.057]
[1766894032724,0.02488534,87801.0,87792.0,0.057]
[1766894032929,0.11432318,87802.0,87792.0,0.057]
[1766894033132,0.02488534,87801.0,87792.0,0.057]
[1766894033431,0.11432318,87802.0,87792.0,0.057]
[1766894033631,0.02488512,87801.0,87792.0,0.057]
[1766894033934,0.11432318,87802.0,87792.0,0.057]
[1766894034126,0.0248851,87801.0,87792.0,0.057]
[1766894034321,0.11432318,87802.0,87792.0,0.057]
[1766894034526,0.02488489,87801.0,87792.0,0.057]
[1766894034726,0.11432318,87802.0,87792.0,0.057]
[1766894034925,0.0248849,87801.0,87792.0,0.057]
[1766894035125,0.11432318,87802.0,87793.0,0.057]
[1766894035327,0.02488488,87801.0,87793.0,0.057]
[1766894035526,0.11432318,87802.0,87788.0,0.01156973]
[1766894035727,0.02488469,87801.0,87789.0,0.15388]
[1766894035930,0.11432318,87802.0,87789.0,0.15388]
[1766894036129,0.02488469,87801.0,87789.0,0.15388]
[1766894036331,0.11432318,87802.0,87789.0,0.15388]
[1766894036537,0.02488454,87801.0,87789.0,0.15388]
[1766894036738,0.11432318,87802.0,87789.0,0.15388]
[1766894036940,0.02488454,87801.0,87789.0,0.15388]
[1766894037135,0.11432318,87802.0,87789.0,0.15388]
[1766894037336,0.02488454,87801.0,87789.0,0.15388]
[1766894037535,0.11432318,87802.0,87789.0,0.15388]
[1766894037735,0.02488441,87801.0,87789.0,0.15388]
[1766894037931,0.11432318,87802.0,87789.0,0.15388]
[1766894038130,0.02488441,87801.0,87789.0,0.15388]
[1766894038425,0.11432318,87802.0,87789.0,0.15388]
[1766894038631,0.02488432,87801.0,87789.0,0.15388]
[1766894038832,0.11432318,87802.0,87789.0,0.15388]
[1766894039033,0.02495095,87801.0,87789.0,0.15388]
[1766894039234,0.11432318,87802.0,87789.0,0.15388]
[1766894039533,0.02495078,87801.0,87790.0,0.0113987]
[1766894039733,0.11432318,87802.0,87790.0,0.0113987]
[1766894040039,0.02495079,87801.0,87790.0,0.0113987]
[1766894040240,0.02495079,87800.0,87790.0,0.0113987]
[1766894040442,0.02495079,87799.0,87790.0,0.0113987]
[1766894040641,0.11432318,87802.0,87790.0,0.0113987]
[1766894040829,0.02495074,87801.0,87790.0,0.0113987]
[1766894041033,0.02495074,87800.0,87790.0,0.0113987]
[1766894041241,0.02495074,87799.0,87790.0,0.0113987]
[1766894041442,0.11432318,87802.0,87790.0,0.0113987]
[1766894041642,0.02495073,87801.0,87790.0,0.0113987]
[1766894041838,0.02495073,87800.0,87790.0,0.0113987]
[1766894042039,0.02495073,87799.0,87790.0,0.0113987]
[1766894042239,0.11432318,87802.0,87790.0,0.0113987]
[1766894042437,0.0249508,87801.0,87790.0,0.0113987]
[1766894042641,0.0249508,87800.0,87790.0,0.0113987]
[1766894042841,0.0249508,87799.0,87790.0,0.0113987]
[1766894043037,0.11432318,87802.0,87790.0,0.0113987]
[1766894043239,0.02495084,87801.0,87790.0,0.0113987]
[1766894043436,0.02495084,87800.0,87790.0,0.0113987]
[1766894043635,0.02495084,87799.0,87790.0,0.0113987]
[1766894043837,0.11432318,87802.0,87790.0,0.0113987]
[1766894044037,0.02495096,87801.0,87790.0,0.0113987]
[1766894044237,0.02495096,87800.0,87790.0,0.0113987]
[1766894044437,0.02495096,87799.0,87790.0,0.0113987]
[1766894044637,0.11432318,87802.0,87790.0,0.0113987]
[1766894044840,0.0249511,87801.0,87790.0,0.0113987]
[1766894045035,0.0249511,87800.0,87790.0,0.0113987]
[1766894045236,0.0249511,87799.0,87790.0,0.0113987]
[1766894045445,0.11432318,87802.0,87790.0,0.0113987]
[1766894045640,0.02495132,87801.0,87790.0,0.0113987]
[1766894045840,0.02495132,87800.0,87790.0,0.0113987]
[1766894046040,0.02495132,87799.0,87790.0,0.0113987]
[1766894046241,0.11432318,87802.0,87790.0,0.0113987]
[1766894046442,0.0249516,87801.0,87790.0,0.0113987]
[1766894046743,0.0249516,87800.0,87790.0,0.0113987]
[1766894046940,0.0249516,87799.0,87790.0,0.0113987]
[1766894047244,0.11432318,87802.0,87790.0,0.0113987]
[1766894047445,0.02495195,87801.0,87790.0,0.0113987]
[1766894047644,0.02495195,87800.0,87790.0,0.0113987]
[1766894047844,0.02495195,87799.0,87790.0,0.0113987]
[1766894048044,0.11432318,87802.0,87790.0,0.0113987]
[1766894048235,0.02495202,87801.0,87790.0,0.0113987]
[1766894048434,0.02495202,87800.0,87790.0,0.0113987]
[1766894048643,0.02495202,87799.0,87790.0,0.0113987]
[1766894048843,0.11432318,87802.0,87790.0,0.0113987]
[1766894049044,0.02495236,87801.0,87790.0,0.0113987]
[1766894049246,0.02495236,87800.0,87790.0,0.0113987]
[1766894049450,0.02495236,87799.0,87790.0,0.0113987]
[1766894049745,0.11432318,87802.0,87790.0,0.0113987]
[1766894049948,0.02495281,87801.0,87790.0,0.0113987]
[1766894050133,0.11432318,87802.0,87790.0,0.0113987]
[1766894050335,0.02495289,87801.0,87790.0,0.0113987]
[1766894050538,0.11432318,87802.0,87790.0,0.0113987]
[1766894050741,0.02495346,87801.0,87790.0,0.0113987]
[1766894051037,0.11432318,87802.0,87790.0,0.0113987]
[1766894051240,0.02495353,87801.0,87790.0,0.0113987]
[1766894051441,0.11432318,87802.0,87790.0,0.0113987]
[1766894051636,0.02495427,87801.0,87790.0,0.0113987]
[1766894051850,0.11432318,87802.0,87790.0,0.0113987]
[1766894052050,0.02495427,87801.0,87790.0,0.0113987]
[1766894052251,0.11432318,87802.0,87790.0,0.0113987]
[1766894052452,0.02495541,87801.0,87790.0,0.0113987]
[1766894052645,0.11432318,87802.0,87790.0,0.0113987]
[1766894052845,0.02495541,87801.0,87790.0,0.0113987]
[1766894053052,0.11432318,87802.0,87790.0,0.0113987]
[1766894053245,0.02495552,87801.0,87790.0,0.0113987]
[1766894053544,0.02495552,87800.0,87790.0,0.0113987]
[1766894053748,0.11432318,87802.0,87790.0,0.0113987]
[1766894053939,0.02495794,87801.0,87790.0,0.0113987]
[1766894054143,0.02495794,87800.0,87790.0,0.0113987]
[1766894054343,0.11432318,87802.0,87790.0,0.0113987]
[1766894054544,0.02495798,87801.0,87790.0,0.0113987]
[1766894054752,0.02495798,87800.0,87790.0,0.0113987]
[1766894054954,0.11432318,87802.0,87790.0,0.0113987]